[Event "*** Titled Tuesday Blitz"]
[Site "Chess.com"]
[Date "2020.04.14"]
[Round "6"]
[White "florianschwabeneder"]
[Black "Embrujada"]
[Result "0-1"]
[WhiteElo "2500"]
[BlackElo "2363"]
[TimeControl "180+1"]
[EndTime "11:04:08 PDT"]
[Termination "Embrujada won on time"]

1. e4 {[%clk 0:03:00.9]} 1... c6 {[%clk 0:02:58.5]} 2. d4 {[%clk 0:03:00.7]}
2... d5 {[%clk 0:02:56.9]} 3. exd5 {[%clk 0:03:01]} 3... cxd5 {[%clk 0:02:56.8]}
4. Nf3 {[%clk 0:03:01.9]} 4... Nc6 {[%clk 0:02:55.7]} 5. Bb5 {[%clk 0:03:01.5]}
5... Bd7 {[%clk 0:02:46.4]} 6. c4 {[%clk 0:02:58.6]} 6... e6 {[%clk 0:02:45]} 7.
Nc3 {[%clk 0:02:58]} 7... Nf6 {[%clk 0:02:44.3]} 8. cxd5 {[%clk 0:02:56.1]} 8...
exd5 {[%clk 0:02:44.3]} 9. O-O {[%clk 0:02:56.2]} 9... Be7 {[%clk 0:02:40.7]}
10. Re1 {[%clk 0:02:47]} 10... O-O {[%clk 0:02:40.1]} 11. Bf4 {[%clk 0:02:45.5]}
11... Be6 {[%clk 0:02:39.4]} 12. h3 {[%clk 0:02:38]} 12... Rc8 {[%clk
0:02:33.1]} 13. Qd2 {[%clk 0:02:32.5]} 13... Bb4 {[%clk 0:02:05.2]} 14. Bd3
{[%clk 0:02:26]} 14... Ne4 {[%clk 0:01:51.2]} 15. Bxe4 {[%clk 0:02:09.4]} 15...
dxe4 {[%clk 0:01:51.2]} 16. Rxe4 {[%clk 0:02:10.3]} 16... Bd5 {[%clk 0:01:51.5]}
17. Re3 {[%clk 0:02:10.7]} 17... Bxf3 {[%clk 0:01:38.9]} 18. Rxf3 {[%clk
0:02:11.6]} 18... Qxd4 {[%clk 0:01:38.4]} 19. Rd3 {[%clk 0:02:10.2]} 19... Qf6
{[%clk 0:01:36.3]} 20. Nd5 {[%clk 0:01:59.3]} 20... Qf5 {[%clk 0:01:23.4]} 21.
Qd1 {[%clk 0:01:35]} 21... Bc5 {[%clk 0:01:04.5]} 22. Rc1 {[%clk 0:01:27.2]}
22... b6 {[%clk 0:01:04.4]} 23. a3 {[%clk 0:01:20.5]} 23... Rfd8 {[%clk
0:00:41.7]} 24. Bg3 {[%clk 0:01:00.8]} 24... h6 {[%clk 0:00:36.8]} 25. b4 {[%clk
0:00:57.2]} 25... Bf8 {[%clk 0:00:36.5]} 26. Rcc3 {[%clk 0:00:31.1]} 26... Ne5
{[%clk 0:00:32.2]} 27. Rxc8 {[%clk 0:00:25.5]} 27... Rxc8 {[%clk 0:00:31.4]} 28.
Bxe5 {[%clk 0:00:09.8]} 28... Qxe5 {[%clk 0:00:31.7]} 29. g3 {[%clk 0:00:07.5]}
29... Qb2 {[%clk 0:00:31.2]} 30. Qf3 {[%clk 0:00:07.4]} 30... Rc1+ {[%clk
0:00:27.7]} 31. Kg2 {[%clk 0:00:07.7]} 31... Qb1 {[%clk 0:00:28.3]} 32. Kh2
{[%clk 0:00:05.9]} 32... Re1 {[%clk 0:00:23.6]} 33. Re3 {[%clk 0:00:04.4]} 33...
Rxe3 {[%clk 0:00:22.4]} 34. Nxe3 {[%clk 0:00:04.9]} 34... Qa2 {[%clk 0:00:21.8]}
35. Nd5 {[%clk 0:00:05.1]} 35... Qc4 {[%clk 0:00:20.8]} 36. Kg2 {[%clk
0:00:05.2]} 36... Bd6 {[%clk 0:00:20.5]} 37. h4 {[%clk 0:00:05.3]} 37... Kf8
{[%clk 0:00:20.9]} 38. Ne3 {[%clk 0:00:03.6]} 38... Qc8 {[%clk 0:00:20.1]} 39.
Qd5 {[%clk 0:00:03.4]} 39... Be7 {[%clk 0:00:20.3]} 40. Nf5 {[%clk 0:00:03.4]}
40... Bf6 {[%clk 0:00:20.2]} 41. b5 {[%clk 0:00:03]} 41... Kg8 {[%clk
0:00:19.6]} 42. a4 {[%clk 0:00:03.3]} 42... Qe8 {[%clk 0:00:18.6]} 43. Qc6
{[%clk 0:00:02.7]} 43... Qe2 {[%clk 0:00:17]} 44. Qf3 {[%clk 0:00:02]} 44... Qa2
{[%clk 0:00:16.3]} 45. Qe4 {[%clk 0:00:02]} 45... Qd2 {[%clk 0:00:13.8]} 46. g4
{[%clk 0:00:01.4]} 46... g6 {[%clk 0:00:12.4]} 0-1

[Event "*** Titled Tuesday Blitz"]
[Site "Chess.com"]
[Date "2020.04.14"]
[Round "6"]
[White "korbul"]
[Black "SGchess01"]
[Result "0-1"]
[WhiteElo "2520"]
[BlackElo "2698"]
[TimeControl "180+1"]
[EndTime "11:04:09 PDT"]
[Termination "SGchess01 won by checkmate"]

1. d4 {[%clk 0:03:00.9]} 1... a6 {[%clk 0:02:59.8]} 2. e4 {[%clk 0:03:00]} 2...
e6 {[%clk 0:02:59.9]} 3. Nf3 {[%clk 0:02:58.9]} 3... d5 {[%clk 0:03:00.1]} 4. e5
{[%clk 0:02:54.6]} 4... c5 {[%clk 0:02:59.5]} 5. c3 {[%clk 0:02:54.6]} 5... Bd7
{[%clk 0:02:59.7]} 6. Be3 {[%clk 0:02:47]} 6... Qb6 {[%clk 0:02:56.5]} 7. Qd2
{[%clk 0:02:45.9]} 7... Nc6 {[%clk 0:02:54.6]} 8. Bd3 {[%clk 0:02:36.3]} 8...
Nh6 {[%clk 0:02:46.6]} 9. O-O {[%clk 0:02:33.1]} 9... Ng4 {[%clk 0:02:46]} 10.
dxc5 {[%clk 0:02:10.1]} 10... Qc7 {[%clk 0:02:43.2]} 11. Re1 {[%clk 0:01:52.9]}
11... Ngxe5 {[%clk 0:01:41.4]} 12. Nxe5 {[%clk 0:01:50.4]} 12... Qxe5 {[%clk
0:01:39.9]} 13. Bf4 {[%clk 0:01:48.2]} 13... Qh5 {[%clk 0:01:36.1]} 14. b4
{[%clk 0:01:46]} 14... Be7 {[%clk 0:01:35.2]} 15. Na3 {[%clk 0:01:39.5]} 15...
O-O {[%clk 0:01:34.5]} 16. Nc2 {[%clk 0:01:39]} 16... Bf6 {[%clk 0:01:34.3]} 17.
Bd6 {[%clk 0:01:28.7]} 17... Rfe8 {[%clk 0:01:33.3]} 18. f4 {[%clk 0:01:28.3]}
18... e5 {[%clk 0:01:28.4]} 19. fxe5 {[%clk 0:01:27.1]} 19... Nxe5 {[%clk
0:01:29.3]} 20. Nd4 {[%clk 0:01:18]} 20... Nc4 {[%clk 0:01:17.5]} 21. Bxc4
{[%clk 0:01:17.3]} 21... dxc4 {[%clk 0:01:18.4]} 22. Rxe8+ {[%clk 0:01:14.6]}
22... Rxe8 {[%clk 0:01:16.9]} 23. Re1 {[%clk 0:01:13.3]} 23... Bxd4+ {[%clk
0:01:07.6]} 24. cxd4 {[%clk 0:01:11.8]} 24... Rxe1+ {[%clk 0:01:02.5]} 25. Qxe1
{[%clk 0:01:12.7]} 25... Qd5 {[%clk 0:01:00.8]} 26. Qe3 {[%clk 0:00:52.6]} 26...
Bc6 {[%clk 0:00:57.8]} 27. Kf1 {[%clk 0:00:33.4]} 27... h6 {[%clk 0:00:52.8]}
28. Ke1 {[%clk 0:00:18.1]} 28... Qxg2 {[%clk 0:00:51.2]} 29. Bg3 {[%clk
0:00:15.6]} 29... Qxa2 {[%clk 0:00:45.4]} 30. d5 {[%clk 0:00:13.9]} 30... Bxd5
{[%clk 0:00:44.3]} 31. Qd4 {[%clk 0:00:14.1]} 31... Be6 {[%clk 0:00:36.4]} 32.
Be5 {[%clk 0:00:14.1]} 32... Qb1+ {[%clk 0:00:34.2]} 33. Kd2 {[%clk 0:00:13.5]}
33... Qxb4+ {[%clk 0:00:33.8]} 34. Ke3 {[%clk 0:00:12.7]} 34... Qb3+ {[%clk
0:00:32.7]} 35. Kf2 {[%clk 0:00:12.8]} 35... Qc2+ {[%clk 0:00:32.7]} 36. Ke3
{[%clk 0:00:12.5]} 36... Qc1+ {[%clk 0:00:27.8]} 37. Kf2 {[%clk 0:00:11.8]}
37... f6 {[%clk 0:00:24.6]} 38. Bg3 {[%clk 0:00:11]} 38... c3 {[%clk 0:00:21.7]}
39. Qd8+ {[%clk 0:00:10]} 39... Kh7 {[%clk 0:00:21.9]} 40. Qd3+ {[%clk
0:00:09.6]} 40... f5 {[%clk 0:00:22.4]} 41. Be5 {[%clk 0:00:07.8]} 41... Qd2+
{[%clk 0:00:17.9]} 42. Qxd2 {[%clk 0:00:07.4]} 42... cxd2 {[%clk 0:00:18.8]} 43.
Ke2 {[%clk 0:00:08.3]} 43... g5 {[%clk 0:00:19.3]} 44. Kxd2 {[%clk 0:00:08]}
44... f4 {[%clk 0:00:19.6]} 45. Ke2 {[%clk 0:00:07.9]} 45... Kg6 {[%clk
0:00:19.9]} 46. Kf3 {[%clk 0:00:07.9]} 46... Bd5+ {[%clk 0:00:19.3]} 47. Kg4
{[%clk 0:00:06.7]} 47... h5+ {[%clk 0:00:19.7]} 48. Kh3 {[%clk 0:00:07.3]} 48...
Kf5 {[%clk 0:00:20.1]} 49. Bc7 {[%clk 0:00:07.3]} 49... Bc4 {[%clk 0:00:19.5]}
50. Ba5 {[%clk 0:00:06.2]} 50... Bf1# {[%clk 0:00:18.9]} 0-1

[Event "*** Titled Tuesday Blitz"]
[Site "Chess.com"]
[Date "2020.04.14"]
[Round "6"]
[White "KarpovVadim"]
[Black "AshotParvanyan"]
[Result "1-0"]
[WhiteElo "2418"]
[BlackElo "2580"]
[TimeControl "180+1"]
[EndTime "11:04:10 PDT"]
[Termination "KarpovVadim won on time"]

1. Nf3 {[%clk 0:03:00.9]} 1... Nf6 {[%clk 0:02:58.9]} 2. c4 {[%clk 0:03:00.5]}
2... g6 {[%clk 0:02:58.6]} 3. Nc3 {[%clk 0:03:00.1]} 3... Bg7 {[%clk 0:02:58.5]}
4. d4 {[%clk 0:02:59]} 4... O-O {[%clk 0:02:57.7]} 5. e4 {[%clk 0:02:57.9]} 5...
d6 {[%clk 0:02:57.2]} 6. Be2 {[%clk 0:02:57.8]} 6... Bg4 {[%clk 0:02:56]} 7. Be3
{[%clk 0:02:54.6]} 7... Nfd7 {[%clk 0:02:55.5]} 8. O-O {[%clk 0:02:51.4]} 8...
Nc6 {[%clk 0:02:54.6]} 9. Rc1 {[%clk 0:02:47.2]} 9... e5 {[%clk 0:02:40.3]} 10.
d5 {[%clk 0:02:44.8]} 10... Bxf3 {[%clk 0:02:39.1]} 11. Bxf3 {[%clk 0:02:44.4]}
11... Nd4 {[%clk 0:02:38.6]} 12. Nb5 {[%clk 0:02:44.4]} 12... Nxf3+ {[%clk
0:02:20.3]} 13. Qxf3 {[%clk 0:02:43.7]} 13... a6 {[%clk 0:02:18.5]} 14. Nc3
{[%clk 0:02:41.6]} 14... f5 {[%clk 0:02:17.9]} 15. Rce1 {[%clk 0:02:27.6]} 15...
f4 {[%clk 0:02:08.3]} 16. Bc1 {[%clk 0:02:25.6]} 16... Nf6 {[%clk 0:02:04.6]}
17. Qe2 {[%clk 0:02:20.2]} 17... f3 {[%clk 0:01:50.5]} 18. Qxf3 {[%clk
0:02:18.8]} 18... Nxd5 {[%clk 0:01:48.4]} 19. Qd3 {[%clk 0:02:13.9]} 19... Nf4
{[%clk 0:01:41]} 20. Bxf4 {[%clk 0:02:05.6]} 20... exf4 {[%clk 0:01:41.9]} 21.
f3 {[%clk 0:02:04.3]} 21... c6 {[%clk 0:01:38.7]} 22. b3 {[%clk 0:01:59.6]}
22... Qa5 {[%clk 0:01:30.3]} 23. Rc1 {[%clk 0:01:44.5]} 23... Rad8 {[%clk
0:01:19]} 24. a4 {[%clk 0:01:42.6]} 24... Qb6+ {[%clk 0:01:13.7]} 25. Kh1 {[%clk
0:01:38.2]} 25... Qxb3 {[%clk 0:01:13.1]} 26. Rfd1 {[%clk 0:01:35.4]} 26... Qb4
{[%clk 0:00:56.1]} 27. g3 {[%clk 0:01:23.7]} 27... Be5 {[%clk 0:00:49.6]} 28.
Kg2 {[%clk 0:01:20.7]} 28... Kg7 {[%clk 0:00:45.4]} 29. Rc2 {[%clk 0:01:10]}
29... Qc5 {[%clk 0:00:40.8]} 30. Rb1 {[%clk 0:01:03.6]} 30... Rf7 {[%clk
0:00:40.2]} 31. Ne2 {[%clk 0:01:02.4]} 31... g5 {[%clk 0:00:29.2]} 32. g4 {[%clk
0:00:47.1]} 32... Re8 {[%clk 0:00:21.8]} 33. h4 {[%clk 0:00:41.7]} 33... h6
{[%clk 0:00:18.8]} 34. h5 {[%clk 0:00:41.1]} 34... Qa5 {[%clk 0:00:17.7]} 35.
Qb3 {[%clk 0:00:39.3]} 35... Qc5 {[%clk 0:00:16.5]} 36. Qd3 {[%clk 0:00:38.3]}
36... Rd8 {[%clk 0:00:15.7]} 37. Rb3 {[%clk 0:00:34.6]} 37... Qa5 {[%clk
0:00:15.2]} 38. Ra2 {[%clk 0:00:33.8]} 38... Qc5 {[%clk 0:00:13]} 39. Rb1 {[%clk
0:00:32.9]} 39... Kh8 {[%clk 0:00:09.2]} 40. Rc2 {[%clk 0:00:29.1]} 40... Bg7
{[%clk 0:00:09.1]} 41. e5 {[%clk 0:00:24.8]} 41... Qxe5 {[%clk 0:00:08.6]} 42.
Nc3 {[%clk 0:00:22.7]} 42... d5 {[%clk 0:00:06.8]} 43. cxd5 {[%clk 0:00:21.5]}
43... cxd5 {[%clk 0:00:07.7]} 44. Rb6 {[%clk 0:00:19.9]} 44... Qe3 {[%clk
0:00:05.4]} 45. Qg6 {[%clk 0:00:17.8]} 45... Bxc3 {[%clk 0:00:02.4]} 46. Qxf7
{[%clk 0:00:16]} 1-0

[Event "*** Titled Tuesday Blitz"]
[Site "Chess.com"]
[Date "2020.04.14"]
[Round "6"]
[White "ftorodent"]
[Black "Casper_Schoppen"]
[Result "0-1"]
[WhiteElo "2668"]
[BlackElo "2990"]
[TimeControl "180+1"]
[EndTime "11:04:11 PDT"]
[Termination "Casper_Schoppen won by resignation"]

1. d4 {[%clk 0:03:00.9]} 1... Nf6 {[%clk 0:02:59.8]} 2. c4 {[%clk 0:03:00.8]}
2... e6 {[%clk 0:03:00.2]} 3. Nf3 {[%clk 0:03:00.3]} 3... d5 {[%clk 0:03:00.5]}
4. Nc3 {[%clk 0:02:59.8]} 4... Bb4 {[%clk 0:02:59]} 5. Qa4+ {[%clk 0:02:56]}
5... Nc6 {[%clk 0:02:58.8]} 6. e3 {[%clk 0:02:56]} 6... O-O {[%clk 0:02:55.6]}
7. Bd2 {[%clk 0:02:53.5]} 7... Re8 {[%clk 0:02:51.5]} 8. cxd5 {[%clk 0:02:30.6]}
8... exd5 {[%clk 0:02:47.6]} 9. Bb5 {[%clk 0:02:30.6]} 9... Bd7 {[%clk
0:02:40.8]} 10. O-O {[%clk 0:02:18]} 10... Bd6 {[%clk 0:02:37.4]} 11. Qd1 {[%clk
0:02:01]} 11... Ne7 {[%clk 0:02:20.5]} 12. Bxd7 {[%clk 0:01:35]} 12... Qxd7
{[%clk 0:02:21.4]} 13. Ne5 {[%clk 0:01:34.7]} 13... Qe6 {[%clk 0:02:19.3]} 14.
f4 {[%clk 0:01:32.5]} 14... c5 {[%clk 0:02:06.4]} 15. Qf3 {[%clk 0:01:18.8]}
15... Nc6 {[%clk 0:01:45.2]} 16. Ne2 {[%clk 0:00:32.1]} 16... Ne4 {[%clk
0:01:40.8]} 17. Be1 {[%clk 0:00:32.1]} 17... cxd4 {[%clk 0:01:32.4]} 18. Nxd4
{[%clk 0:00:30.2]} 18... Nxe5 {[%clk 0:01:20.4]} 19. fxe5 {[%clk 0:00:19.3]}
19... Qxe5 {[%clk 0:01:21.3]} 20. Qxf7+ {[%clk 0:00:13.2]} 20... Kh8 {[%clk
0:01:21.7]} 21. Qf4 {[%clk 0:00:13.3]} 21... Qxf4 {[%clk 0:00:36.9]} 22. exf4
{[%clk 0:00:12.7]} 22... Bc5 {[%clk 0:00:37.4]} 23. Bc3 {[%clk 0:00:12.6]} 23...
b5 {[%clk 0:00:38]} 24. a3 {[%clk 0:00:10.8]} 24... a5 {[%clk 0:00:38.1]} 25.
Rfd1 {[%clk 0:00:10.2]} 25... b4 {[%clk 0:00:33.4]} 26. axb4 {[%clk 0:00:10.4]}
26... axb4 {[%clk 0:00:34.3]} 27. Rxa8 {[%clk 0:00:10.2]} 27... Rxa8 {[%clk
0:00:35.2]} 28. Be1 {[%clk 0:00:10.4]} 28... Ra2 {[%clk 0:00:24]} 29. Kf1 {[%clk
0:00:10.6]} 29... Rxb2 {[%clk 0:00:21.8]} 30. Ne6 {[%clk 0:00:10.8]} 30... Kg8
{[%clk 0:00:18.3]} 31. Rxd5 {[%clk 0:00:09.9]} 31... Bf2 {[%clk 0:00:14.3]} 32.
Ng5 {[%clk 0:00:09.4]} 32... Nxg5 {[%clk 0:00:14.1]} 33. Bxf2 {[%clk 0:00:09.6]}
33... Ne4 {[%clk 0:00:12.9]} 34. Bd4 {[%clk 0:00:09.6]} 34... Rd2 {[%clk
0:00:08.2]} 35. Ke1 {[%clk 0:00:08]} 35... b3 {[%clk 0:00:06.3]} 36. Rd8+ {[%clk
0:00:07.4]} 36... Kf7 {[%clk 0:00:06.8]} 37. Rb8 {[%clk 0:00:02]} 37... Rxd4
{[%clk 0:00:06.6]} 38. Rxb3 {[%clk 0:00:02.2]} 38... Nf6 {[%clk 0:00:06.9]} 39.
Rb7+ {[%clk 0:00:02.2]} 39... Kg6 {[%clk 0:00:07.1]} 40. g3 {[%clk 0:00:02.9]}
40... h5 {[%clk 0:00:07.6]} 41. h3 {[%clk 0:00:02.8]} 41... h4 {[%clk
0:00:06.6]} 42. gxh4 {[%clk 0:00:02]} 42... Rxf4 {[%clk 0:00:06.9]} 43. Rb5
{[%clk 0:00:01.9]} 43... Rxh4 {[%clk 0:00:07.1]} 44. Rb3 {[%clk 0:00:02.1]}
44... Rf4 {[%clk 0:00:05]} 0-1

[Event "*** Titled Tuesday Blitz"]
[Site "Chess.com"]
[Date "2020.04.14"]
[Round "6"]
[White "joksijoksi"]
[Black "Ziyamammadov"]
[Result "1-0"]
[WhiteElo "2313"]
[BlackElo "1795"]
[TimeControl "180+1"]
[EndTime "11:04:11 PDT"]
[Termination "joksijoksi won by resignation"]

1. e4 {[%clk 0:03:00.9]} 1... e6 {[%clk 0:02:56]} 2. d4 {[%clk 0:02:58.9]} 2...
d5 {[%clk 0:02:55.9]} 3. Nc3 {[%clk 0:02:53.6]} 3... dxe4 {[%clk 0:02:55.6]} 4.
Nxe4 {[%clk 0:02:52.1]} 4... Nf6 {[%clk 0:02:55.2]} 5. Nxf6+ {[%clk 0:02:45.7]}
5... Qxf6 {[%clk 0:02:54.6]} 6. Nf3 {[%clk 0:02:46.6]} 6... Nc6 {[%clk 0:02:52]}
7. Bg5 {[%clk 0:02:34.8]} 7... Qg6 {[%clk 0:02:46.2]} 8. Bd3 {[%clk 0:02:31.7]}
8... f5 {[%clk 0:02:45.8]} 9. Qe2 {[%clk 0:02:16.6]} 9... Bd6 {[%clk 0:02:41.8]}
10. h4 {[%clk 0:02:10]} 10... h6 {[%clk 0:02:29.4]} 11. h5 {[%clk 0:02:09.5]}
11... Qf7 {[%clk 0:02:26.6]} 12. Bd2 {[%clk 0:02:09.8]} 12... Bd7 {[%clk
0:02:17.2]} 13. O-O-O {[%clk 0:01:46.6]} 13... O-O-O {[%clk 0:02:13.6]} 14. Kb1
{[%clk 0:01:43.8]} 14... g5 {[%clk 0:02:12.4]} 15. hxg6 {[%clk 0:01:41.9]} 15...
Qxg6 {[%clk 0:02:11.3]} 16. c4 {[%clk 0:01:37.1]} 16... Rde8 {[%clk 0:01:49.2]}
17. c5 {[%clk 0:01:34.2]} 17... Be7 {[%clk 0:01:46.5]} 18. Bf4 {[%clk
0:01:33.7]} 18... Bf6 {[%clk 0:01:44.2]} 19. Be5 {[%clk 0:01:29.8]} 19... Nxe5
{[%clk 0:01:40.7]} 20. dxe5 {[%clk 0:01:25.5]} 20... Be7 {[%clk 0:01:39.7]} 21.
Rc1 {[%clk 0:01:16]} 21... Bc6 {[%clk 0:01:35]} 22. Nd4 {[%clk 0:01:13.7]} 22...
Bd5 {[%clk 0:01:30.1]} 23. c6 {[%clk 0:01:11]} 23... b6 {[%clk 0:01:00.5]} 24.
Rhd1 {[%clk 0:00:47.1]} 24... Bc5 {[%clk 0:00:44.7]} 25. Bxf5 {[%clk 0:00:34.8]}
25... exf5 {[%clk 0:00:24.8]} 26. Qa6+ {[%clk 0:00:33.8]} 26... Kd8 {[%clk
0:00:23.5]} 27. Nf3 {[%clk 0:00:20.7]} 27... Qxc6 {[%clk 0:00:17.9]} 28. Qc4
{[%clk 0:00:19.3]} 28... Kc8 {[%clk 0:00:10.7]} 29. Rxd5 {[%clk 0:00:17.7]}
29... f4 {[%clk 0:00:07.9]} 30. Rcd1 {[%clk 0:00:16.1]} 30... Rd8 {[%clk
0:00:07.5]} 31. Qa6+ {[%clk 0:00:15.4]} 31... Qb7 {[%clk 0:00:05.7]} 32. Rxd8+
{[%clk 0:00:15.2]} 32... Rxd8 {[%clk 0:00:04.8]} 33. Rxd8+ {[%clk 0:00:16.1]}
33... Kxd8 {[%clk 0:00:05.7]} 34. Qxb7 {[%clk 0:00:17]} 34... Bxf2 {[%clk
0:00:06.4]} 35. Qe4 {[%clk 0:00:17.1]} 35... Be3 {[%clk 0:00:05.9]} 36. Qg6
{[%clk 0:00:17.5]} 36... Kd7 {[%clk 0:00:05.2]} 37. Qxh6 {[%clk 0:00:17.7]}
37... Ke7 {[%clk 0:00:06.1]} 38. Qg6 {[%clk 0:00:18.1]} 38... Bc5 {[%clk
0:00:06.3]} 39. Qe4 {[%clk 0:00:19]} 39... Ke8 {[%clk 0:00:06.5]} 40. Kc2 {[%clk
0:00:19.9]} 40... Be7 {[%clk 0:00:05.2]} 41. b3 {[%clk 0:00:20.8]} 41... c5
{[%clk 0:00:04.2]} 42. e6 {[%clk 0:00:21.7]} 42... Kf8 {[%clk 0:00:03.2]} 43.
Qf5+ {[%clk 0:00:21.9]} 43... Ke8 {[%clk 0:00:03.5]} 44. Qxf4 {[%clk 0:00:22.3]}
44... Kd8 {[%clk 0:00:03]} 45. Qf7 {[%clk 0:00:23.2]} 45... b5 {[%clk
0:00:01.3]} 46. Ne5 {[%clk 0:00:23.7]} 46... Kc7 {[%clk 0:00:01.3]} 47. Qxe7+
{[%clk 0:00:22.9]} 47... Kb6 {[%clk 0:00:02.2]} 48. Nd7+ {[%clk 0:00:22.8]}
48... Ka5 {[%clk 0:00:01.1]} 49. Qd8+ {[%clk 0:00:21.6]} 1-0

[Event "*** Titled Tuesday Blitz"]
[Site "Chess.com"]
[Date "2020.04.14"]
[Round "6"]
[White "Sanan_Sjugirov"]
[Black "AnishGiri"]
[Result "0-1"]
[WhiteElo "2826"]
[BlackElo "3027"]
[TimeControl "180+1"]
[EndTime "11:04:13 PDT"]
[Termination "AnishGiri won by resignation"]

1. d4 {[%clk 0:03:00.9]} 1... Nf6 {[%clk 0:02:59.9]} 2. Nf3 {[%clk 0:03:01.1]}
2... d5 {[%clk 0:02:58.3]} 3. Bf4 {[%clk 0:03:00.7]} 3... Bf5 {[%clk 0:02:57.4]}
4. c4 {[%clk 0:02:55.2]} 4... e6 {[%clk 0:02:56.7]} 5. Qb3 {[%clk 0:02:54.9]}
5... Nc6 {[%clk 0:02:56.8]} 6. c5 {[%clk 0:02:54.9]} 6... Rb8 {[%clk 0:02:55.4]}
7. h3 {[%clk 0:02:49.4]} 7... Be7 {[%clk 0:02:53.3]} 8. e3 {[%clk 0:02:49.3]}
8... O-O {[%clk 0:02:53.3]} 9. Bb5 {[%clk 0:02:46.9]} 9... Ne4 {[%clk
0:02:48.2]} 10. Nc3 {[%clk 0:02:40.2]} 10... Bf6 {[%clk 0:02:45.9]} 11. O-O
{[%clk 0:02:32.8]} 11... Ne7 {[%clk 0:02:44.6]} 12. Bh2 {[%clk 0:02:25.1]} 12...
a6 {[%clk 0:02:36.9]} 13. Be2 {[%clk 0:02:23.2]} 13... Nc6 {[%clk 0:02:33.1]}
14. Rac1 {[%clk 0:02:11.9]} 14... Qd7 {[%clk 0:02:25.8]} 15. Rfd1 {[%clk
0:01:55.5]} 15... h6 {[%clk 0:02:19]} 16. Ne1 {[%clk 0:01:40.4]} 16... Rfe8
{[%clk 0:02:14.4]} 17. Nxe4 {[%clk 0:01:29.7]} 17... Bxe4 {[%clk 0:02:12.5]} 18.
Bd3 {[%clk 0:01:27.1]} 18... Bf5 {[%clk 0:01:24.6]} 19. a3 {[%clk 0:01:17.5]}
19... h5 {[%clk 0:01:23.5]} 20. Nf3 {[%clk 0:01:12]} 20... g5 {[%clk 0:01:05.7]}
21. Bxf5 {[%clk 0:00:52.6]} 21... exf5 {[%clk 0:01:05.6]} 22. Ne5 {[%clk
0:00:53.2]} 22... Bxe5 {[%clk 0:01:03.6]} 23. dxe5 {[%clk 0:00:53.1]} 23... Red8
{[%clk 0:01:00.2]} 24. h4 {[%clk 0:00:46.4]} 24... gxh4 {[%clk 0:00:50.1]} 25.
Qa4 {[%clk 0:00:44.3]} 25... d4 {[%clk 0:00:50.4]} 26. Qc4 {[%clk 0:00:09.4]}
26... Kh7 {[%clk 0:00:17.4]} 27. Qe2 {[%clk 0:00:08.7]} 27... Kg6 {[%clk
0:00:17.4]} 28. e6 {[%clk 0:00:05.5]} 28... fxe6 {[%clk 0:00:17.1]} 29. exd4
{[%clk 0:00:05.6]} 29... Nxd4 {[%clk 0:00:16.9]} 30. Qe3 {[%clk 0:00:05.9]}
30... Qa4 {[%clk 0:00:10.9]} 31. Re1 {[%clk 0:00:04]} 31... Rd5 {[%clk
0:00:08.6]} 32. Bxc7 {[%clk 0:00:03.4]} 32... Re8 {[%clk 0:00:08.9]} 33. Be5
{[%clk 0:00:03.5]} 33... Nc6 {[%clk 0:00:08.6]} 34. Bc3 {[%clk 0:00:03.6]} 34...
e5 {[%clk 0:00:08.5]} 35. Qf3 {[%clk 0:00:03.4]} 35... Qb3 {[%clk 0:00:05.8]}
36. Rcd1 {[%clk 0:00:03.5]} 36... e4 {[%clk 0:00:05]} 37. Qe2 {[%clk 0:00:03.7]}
37... Red8 {[%clk 0:00:05.2]} 38. Rxd5 {[%clk 0:00:03.9]} 38... Qxd5 {[%clk
0:00:05.9]} 39. Qe3 {[%clk 0:00:04.5]} 39... Qd3 {[%clk 0:00:05.6]} 40. Qf4
{[%clk 0:00:04.9]} 40... Qd5 {[%clk 0:00:05.9]} 41. Qc7 {[%clk 0:00:05]} 41...
Rd7 {[%clk 0:00:06]} 42. Qc8 {[%clk 0:00:05.5]} 42... Qf7 {[%clk 0:00:05]} 43.
Qh8 {[%clk 0:00:05.2]} 43... Rd8 {[%clk 0:00:04.4]} 0-1

[Event "*** Titled Tuesday Blitz"]
[Site "Chess.com"]
[Date "2020.04.14"]
[Round "6"]
[White "EvgenyRomanov"]
[Black "SamuelGhimpu2003"]
[Result "1-0"]
[WhiteElo "2508"]
[BlackElo "2543"]
[TimeControl "180+1"]
[EndTime "11:04:13 PDT"]
[Termination "EvgenyRomanov won on time"]

1. c4 {[%clk 0:03:00.9]} 1... Nf6 {[%clk 0:02:59.8]} 2. Nc3 {[%clk 0:03:01]}
2... g6 {[%clk 0:03:00.1]} 3. e4 {[%clk 0:02:59.7]} 3... c5 {[%clk 0:03:00.4]}
4. Nf3 {[%clk 0:02:58.1]} 4... d6 {[%clk 0:03:00.6]} 5. d4 {[%clk 0:02:58.3]}
5... cxd4 {[%clk 0:03:01.5]} 6. Nxd4 {[%clk 0:02:56.8]} 6... Bg7 {[%clk
0:03:02.4]} 7. Be2 {[%clk 0:02:55.6]} 7... Nc6 {[%clk 0:03:02.8]} 8. Be3 {[%clk
0:02:54.4]} 8... O-O {[%clk 0:03:03.3]} 9. O-O {[%clk 0:02:50.9]} 9... Bd7
{[%clk 0:03:03.8]} 10. Nb3 {[%clk 0:02:49.3]} 10... Rc8 {[%clk 0:02:42.2]} 11.
c5 {[%clk 0:02:44.7]} 11... Be6 {[%clk 0:02:35]} 12. cxd6 {[%clk 0:02:42.3]}
12... exd6 {[%clk 0:02:35.9]} 13. Nd4 {[%clk 0:02:39.6]} 13... Nxd4 {[%clk
0:02:31.5]} 14. Bxd4 {[%clk 0:02:38.6]} 14... Qa5 {[%clk 0:02:21.4]} 15. f3
{[%clk 0:02:29.6]} 15... Rfd8 {[%clk 0:02:18.5]} 16. Qd2 {[%clk 0:02:28.4]}
16... h5 {[%clk 0:01:40.9]} 17. Rfd1 {[%clk 0:02:26.6]} 17... d5 {[%clk
0:01:40.2]} 18. Qf4 {[%clk 0:02:15.6]} 18... Ne8 {[%clk 0:01:25.1]} 19. Bxg7
{[%clk 0:02:01.9]} 19... Nxg7 {[%clk 0:01:26]} 20. exd5 {[%clk 0:02:00.9]} 20...
Bxd5 {[%clk 0:01:26.5]} 21. Qe5 {[%clk 0:01:44]} 21... Qb6+ {[%clk 0:01:20.4]}
22. Kh1 {[%clk 0:01:41.7]} 22... Bc6 {[%clk 0:01:15.9]} 23. b3 {[%clk 0:01:23]}
23... Re8 {[%clk 0:01:07]} 24. Qf6 {[%clk 0:01:15.7]} 24... Re6 {[%clk 0:01:05]}
25. Qf4 {[%clk 0:01:15.5]} 25... Qe3 {[%clk 0:00:33]} 26. Qxe3 {[%clk
0:01:10.4]} 26... Rxe3 {[%clk 0:00:33.9]} 27. Rac1 {[%clk 0:01:10.5]} 27... Be8
{[%clk 0:00:32]} 28. Bd3 {[%clk 0:00:59.4]} 28... Ne6 {[%clk 0:00:25.9]} 29. Kg1
{[%clk 0:00:56.1]} 29... Nf4 {[%clk 0:00:22.1]} 30. Bc4 {[%clk 0:00:52.1]} 30...
b5 {[%clk 0:00:18]} 31. Nxb5 {[%clk 0:00:40.6]} 31... Rxc4 {[%clk 0:00:16.7]}
32. Rxc4 {[%clk 0:00:38.2]} 32... Bxb5 {[%clk 0:00:02]} 33. Rxf4 {[%clk
0:00:38]} 33... Re2 {[%clk 0:00:02.9]} 34. a4 {[%clk 0:00:29.4]} 34... Bc6
{[%clk 0:00:03]} 35. h4 {[%clk 0:00:29.4]} 35... Kg7 {[%clk 0:00:03]} 36. Rd6
{[%clk 0:00:29.3]} 36... Be8 {[%clk 0:00:02.6]} 37. Ra6 {[%clk 0:00:28.7]} 37...
Rb2 {[%clk 0:00:02.9]} 38. Rxa7 {[%clk 0:00:28.1]} 38... Rxb3 {[%clk 0:00:03]}
39. a5 {[%clk 0:00:28.6]} 39... Ra3 {[%clk 0:00:02.7]} 40. a6 {[%clk 0:00:28.4]}
40... Kf8 {[%clk 0:00:03.1]} 41. Ra8 {[%clk 0:00:27.9]} 41... f5 {[%clk
0:00:02.6]} 42. Rb4 {[%clk 0:00:26.5]} 42... Ke7 {[%clk 0:00:02.5]} 43. Rb7+
{[%clk 0:00:26.2]} 1-0